[Event "Titled Tuesday Blitz January 17 Late 2023"]
[White "Gasparyan, David"]
[Black "Bambino Filho, Antonio Carlos"]
[WhiteFideId "13311980"]
[BlackFideId "2113163"]
[WhiteElo "2142"]
[BlackElo "2144"]
[Result "0-1"]
[Round "09"]
[TimeControl "180+2"]
[Date "2023.01.17"]
[WhiteClock "0:00:05"]
[BlackClock "0:00:18"]

1. Nf3 {[%clk 0:02:56]}  c5 {[%clk 0:02:58]} 2. c4 {[%clk 0:02:56]}  Nc6 {[%clk 0:02:58]} 3. Nc3 {[%clk 0:02:56]}  e5 {[%clk 0:02:58]} 4. g3 {[%clk 0:02:56]}  g6 {[%clk 0:02:58]} 5. Bg2 {[%clk 0:02:57]}  Bg7 {[%clk 0:02:58]} 6. d3 {[%clk 0:02:57]}  Nge7 {[%clk 0:02:59]} 7. O-O {[%clk 0:02:57]}  O-O {[%clk 0:03:00]} 8. Rb1 {[%clk 0:02:55]}  d6 {[%clk 0:03:00]} 9. a3 {[%clk 0:02:56]}  f5 {[%clk 0:03:01]} 10. Bd2 {[%clk 0:02:54]}  h6 {[%clk 0:03:00]} 11. b4 {[%clk 0:02:54]}  Rb8 {[%clk 0:03:01]} 12. bxc5 {[%clk 0:02:53]}  dxc5 {[%clk 0:03:01]} 13. Qb3 {[%clk 0:02:42]}  Be6 {[%clk 0:03:00]} 14. Rfd1 {[%clk 0:02:37]}  Qd7 {[%clk 0:02:50]} 15. Qb5 {[%clk 0:02:34]}  b6 {[%clk 0:02:50]} 16. Be1 {[%clk 0:02:12]}  g5 {[%clk 0:02:48]} 17. e3 {[%clk 0:02:09]}  g4 {[%clk 0:02:46]} 18. Nh4 {[%clk 0:02:09]}  f4 {[%clk 0:02:44]} 19. exf4 {[%clk 0:02:06]}  exf4 {[%clk 0:02:44]} 20. gxf4 {[%clk 0:02:02]}  Rxf4 {[%clk 0:02:38]} 21. Ne4 {[%clk 0:02:01]}  Rbf8 {[%clk 0:02:33]} 22. Bd2 {[%clk 0:02:00]}  R4f7 {[%clk 0:02:22]} 23. Be3 {[%clk 0:02:00]}  Bf6 {[%clk 0:02:10]} 24. Nxf6+ {[%clk 0:01:58]}  Rxf6 {[%clk 0:02:08]} 25. Qb2 {[%clk 0:01:55]}  Nf5 {[%clk 0:02:02]} 26. Nxf5 {[%clk 0:01:54]}  Rxf5 {[%clk 0:02:01]} 27. Be4 {[%clk 0:01:50]}  R5f6 {[%clk 0:01:55]} 28. d4 {[%clk 0:01:47]}  Nxd4 {[%clk 0:01:54]} 29. Rxd4 {[%clk 0:01:46]}  cxd4 {[%clk 0:01:55]} 30. Bxd4 {[%clk 0:01:47]}  Rf4 {[%clk 0:01:50]} 31. Re1 {[%clk 0:01:47]}  Bxc4 {[%clk 0:01:37]} 32. Qc3 {[%clk 0:01:34]}  Bd5 {[%clk 0:01:28]} 33. Bxd5+ {[%clk 0:01:28]}  Qxd5 {[%clk 0:01:29]} 34. Bh8 {[%clk 0:01:24]}  R8f7 {[%clk 0:01:06]} 35. Re8+ {[%clk 0:01:06]}  Kh7 {[%clk 0:01:05]} 36. Qc2+ {[%clk 0:00:34]}  Qf5 {[%clk 0:00:58]} 37. Qxf5+ {[%clk 0:00:28]}  R4xf5 {[%clk 0:00:57]} 38. Bd4 {[%clk 0:00:29]}  Ra5 {[%clk 0:00:52]} 39. Rh8+ {[%clk 0:00:27]}  Kg6 {[%clk 0:00:52]} 40. Rg8+ {[%clk 0:00:28]}  Kf5 {[%clk 0:00:53]} 41. Bb2 {[%clk 0:00:27]}  Rb5 {[%clk 0:00:49]} 42. Bd4 {[%clk 0:00:26]}  Rb3 {[%clk 0:00:48]} 43. Rh8 {[%clk 0:00:23]}  Rd7 {[%clk 0:00:38]} 44. Be3 {[%clk 0:00:17]}  Rxa3 {[%clk 0:00:37]} 45. Rxh6 {[%clk 0:00:18]}  Rxe3 {[%clk 0:00:37]} 46. fxe3 {[%clk 0:00:18]}  Ke4 {[%clk 0:00:37]} 47. Re6+ {[%clk 0:00:18]}  Kf3 {[%clk 0:00:36]} 48. Rf6+ {[%clk 0:00:18]}  Kxe3 {[%clk 0:00:36]} 49. Rg6 {[%clk 0:00:19]}  Rd4 {[%clk 0:00:33]} 50. Re6+ {[%clk 0:00:16]}  Re4 {[%clk 0:00:33]} 51. Rc6 {[%clk 0:00:17]}  b5 {[%clk 0:00:30]} 52. Ra6 {[%clk 0:00:16]}  Ra4 {[%clk 0:00:30]} 53. Rg6 {[%clk 0:00:15]}  a5 {[%clk 0:00:29]} 54. Re6+ {[%clk 0:00:11]}  Re4 {[%clk 0:00:29]} 55. Rb6 {[%clk 0:00:11]}  b4 {[%clk 0:00:30]} 56. Ra6 {[%clk 0:00:11]}  b3 {[%clk 0:00:29]} 57. Rxa5 {[%clk 0:00:11]}  b2 {[%clk 0:00:30]} 58. Rb5 {[%clk 0:00:11]}  Kf3 {[%clk 0:00:25]} 59. Rb3+ {[%clk 0:00:11]}  Re3 {[%clk 0:00:24]} 60. h3 {[%clk 0:00:05]}  Rxb3 {[%clk 0:00:17]} 61. Kh2 {[%clk 0:00:05]}  b1=Q {[%clk 0:00:16]} 62. hxg4 {[%clk 0:00:05]}  Rb2+ {[%clk 0:00:17]} 63. Kh3 {[%clk 0:00:05]}  Qh1# {[%clk 0:00:18]} 0-1


[Site "https://www.chess.com"]

[Event "Titled Tuesday Blitz January 17 Late 2023"]
[White "Gatterer, Florian"]
[Black "Khandelwal, Ankush"]
[WhiteFideId "811688"]
[BlackFideId "413470"]
[WhiteElo "2170"]
[BlackElo "2205"]
[Result "1-0"]
[Round "09"]
[TimeControl "180+2"]
[Date "2023.01.17"]
[WhiteClock "0:01:01"]
[BlackClock "0:00:41"]

1. c4 {[%clk 0:03:00]}  Nf6 {[%clk 0:02:59]} 2. Nf3 {[%clk 0:02:59]}  g6 {[%clk 0:02:59]} 3. b3 {[%clk 0:02:59]}  Bg7 {[%clk 0:02:59]} 4. Bb2 {[%clk 0:02:59]}  d6 {[%clk 0:02:56]} 5. d4 {[%clk 0:02:58]}  c5 {[%clk 0:02:56]} 6. Nc3 {[%clk 0:02:53]}  cxd4 {[%clk 0:02:51]} 7. Nxd4 {[%clk 0:02:53]}  Nc6 {[%clk 0:02:52]} 8. g3 {[%clk 0:02:46]}  O-O {[%clk 0:02:40]} 9. Bg2 {[%clk 0:02:44]}  Bd7 {[%clk 0:01:50]} 10. O-O {[%clk 0:02:42]}  Rb8 {[%clk 0:01:48]} 11. e3 {[%clk 0:02:41]}  a6 {[%clk 0:01:48]} 12. h3 {[%clk 0:02:41]}  Qc7 {[%clk 0:01:48]} 13. Rc1 {[%clk 0:02:31]}  Rfc8 {[%clk 0:01:47]} 14. Nd5 {[%clk 0:02:24]}  Qd8 {[%clk 0:01:47]} 15. Nxc6 {[%clk 0:02:20]}  Bxc6 {[%clk 0:01:44]} 16. Nxf6+ {[%clk 0:02:18]}  exf6 {[%clk 0:01:45]} 17. Qd2 {[%clk 0:02:08]}  b5 {[%clk 0:01:34]} 18. Bxc6 {[%clk 0:02:05]}  Rxc6 {[%clk 0:01:35]} 19. cxb5 {[%clk 0:02:05]}  Rxc1 {[%clk 0:01:35]} 20. Rxc1 {[%clk 0:02:03]}  axb5 {[%clk 0:01:36]} 21. Qd5 {[%clk 0:01:36]}  h5 {[%clk 0:01:30]} 22. h4 {[%clk 0:01:35]}  b4 {[%clk 0:01:15]} 23. Rc6 {[%clk 0:01:33]}  Bf8 {[%clk 0:01:12]} 24. Qc4 {[%clk 0:01:15]}  Be7 {[%clk 0:00:49]} 25. Rc7 {[%clk 0:01:12]}  Kf8 {[%clk 0:00:45]} 26. Bxf6 {[%clk 0:01:03]}  Bxf6 {[%clk 0:00:41]} 27. Qxf7# {[%clk 0:01:01]} 1-0


[Site "https://www.chess.com"]

[Event "Titled Tuesday Blitz January 17 Late 2023"]
[White "Gerbelli Neto, Eduardo"]
[Black "Defend, Balint"]
[WhiteFideId "2103281"]
[BlackFideId "17004853"]
[WhiteElo "2114"]
[BlackElo "1673"]
[Result "1-0"]
[Round "09"]
[TimeControl "180+2"]
[Date "2023.01.17"]
[WhiteClock "0:00:13"]
[BlackClock "0:00:10"]

1. e4 {[%clk 0:03:00]}  c5 {[%clk 0:02:59]} 2. Nc3 {[%clk 0:03:00]}  d6 {[%clk 0:02:59]} 3. f4 {[%clk 0:03:01]}  Nf6 {[%clk 0:02:59]} 4. Nf3 {[%clk 0:03:02]}  g6 {[%clk 0:02:59]} 5. Bb5+ {[%clk 0:03:02]}  Nbd7 {[%clk 0:02:59]} 6. Bc4 {[%clk 0:03:02]}  Bg7 {[%clk 0:02:59]} 7. e5 {[%clk 0:02:56]}  dxe5 {[%clk 0:02:55]} 8. fxe5 {[%clk 0:02:57]}  Ng4 {[%clk 0:02:54]} 9. e6 {[%clk 0:02:41]}  fxe6 {[%clk 0:02:52]} 10. Ng5 {[%clk 0:02:31]}  Nde5 {[%clk 0:02:45]} 11. Nxe6 {[%clk 0:02:14]}  Bxe6 {[%clk 0:02:42]} 12. Bxe6 {[%clk 0:02:15]}  Qd4 {[%clk 0:02:41]} 13. Qe2 {[%clk 0:02:08]}  a6 {[%clk 0:02:25]} 14. h3 {[%clk 0:01:36]}  Nf6 {[%clk 0:02:16]} 15. d3 {[%clk 0:01:36]}  Qh4+ {[%clk 0:02:09]} 16. Qf2 {[%clk 0:01:00]}  Qxf2+ {[%clk 0:02:06]} 17. Kxf2 {[%clk 0:01:01]}  Rf8 {[%clk 0:01:52]} 18. Re1 {[%clk 0:00:53]}  Ne4+ {[%clk 0:01:42]} 19. Kg1 {[%clk 0:00:52]}  Nxc3 {[%clk 0:01:41]} 20. bxc3 {[%clk 0:00:53]}  Kd8 {[%clk 0:01:38]} 21. Be3 {[%clk 0:00:36]}  b6 {[%clk 0:01:37]} 22. d4 {[%clk 0:00:32]}  cxd4 {[%clk 0:01:35]} 23. Bxd4 {[%clk 0:00:32]}  Kc7 {[%clk 0:01:19]} 24. Bxe5+ {[%clk 0:00:31]}  Bxe5 {[%clk 0:01:20]} 25. Rxe5 {[%clk 0:00:31]}  Rad8 {[%clk 0:01:20]} 26. Rd5 {[%clk 0:00:27]}  Rxd5 {[%clk 0:01:16]} 27. Bxd5 {[%clk 0:00:28]}  Kd6 {[%clk 0:01:16]} 28. Be4 {[%clk 0:00:27]}  Rc8 {[%clk 0:01:11]} 29. Rd1+ {[%clk 0:00:21]}  Ke5 {[%clk 0:01:06]} 30. Bd3 {[%clk 0:00:20]}  b5 {[%clk 0:01:06]} 31. Re1+ {[%clk 0:00:20]}  Kd6 {[%clk 0:01:05]} 32. Re4 {[%clk 0:00:15]}  Rxc3 {[%clk 0:01:02]} 33. a4 {[%clk 0:00:16]}  a5 {[%clk 0:00:47]} 34. axb5 {[%clk 0:00:15]}  Ra3 {[%clk 0:00:47]} 35. Rc4 {[%clk 0:00:12]}  Ra1+ {[%clk 0:00:45]} 36. Kf2 {[%clk 0:00:12]}  a4 {[%clk 0:00:45]} 37. b6 {[%clk 0:00:12]}  a3 {[%clk 0:00:46]} 38. b7 {[%clk 0:00:12]}  Rb1 {[%clk 0:00:46]} 39. Ra4 {[%clk 0:00:12]}  Rxb7 {[%clk 0:00:44]} 40. Rxa3 {[%clk 0:00:12]}  Kc5 {[%clk 0:00:42]} 41. Ke3 {[%clk 0:00:13]}  e6 {[%clk 0:00:41]} 42. Ra6 {[%clk 0:00:13]}  Re7 {[%clk 0:00:41]} 43. Ke4 {[%clk 0:00:13]}  e5 {[%clk 0:00:39]} 44. Ra5+ {[%clk 0:00:12]}  Kb4 {[%clk 0:00:40]} 45. Rxe5 {[%clk 0:00:12]}  Rd7 {[%clk 0:00:39]} 46. g4 {[%clk 0:00:12]}  Kc3 {[%clk 0:00:38]} 47. Rc5+ {[%clk 0:00:12]}  Kb4 {[%clk 0:00:37]} 48. Rd5 {[%clk 0:00:12]}  Re7+ {[%clk 0:00:36]} 49. Kf4 {[%clk 0:00:12]}  Kc3 {[%clk 0:00:35]} 50. Kg5 {[%clk 0:00:12]}  Re6 {[%clk 0:00:18]} 51. h4 {[%clk 0:00:12]}  h5 {[%clk 0:00:16]} 52. gxh5 {[%clk 0:00:12]}  gxh5 {[%clk 0:00:17]} 53. Kxh5 {[%clk 0:00:13]}  Re3 {[%clk 0:00:16]} 54. Kg5 {[%clk 0:00:13]}  Rg3+ {[%clk 0:00:16]} 55. Kh6 {[%clk 0:00:13]}  Kd2 {[%clk 0:00:15]} 56. h5 {[%clk 0:00:13]}  Kc3 {[%clk 0:00:15]} 57. Rg5 {[%clk 0:00:13]}  Re3 {[%clk 0:00:14]} 58. Kg7 {[%clk 0:00:13]}  Re7+ {[%clk 0:00:12]} 59. Kf6 {[%clk 0:00:13]}  Re8 {[%clk 0:00:12]} 60. h6 {[%clk 0:00:14]}  Rf8+ {[%clk 0:00:11]} 61. Ke7 {[%clk 0:00:13]}  Ra8 {[%clk 0:00:09]} 62. h7 {[%clk 0:00:14]}  Ra7+ {[%clk 0:00:09]} 63. Ke6 {[%clk 0:00:14]}  Rxh7 {[%clk 0:00:09]} 64. Bxh7 {[%clk 0:00:13]}  Kd2 {[%clk 0:00:10]} 65. c4 {[%clk 0:00:13]} 1-0


[Site "https://www.chess.com"]

[Event "Titled Tuesday Blitz January 17 Late 2023"]
[White "Romero Ruscalleda, Josep"]
[Black "Womacka, Mathias"]
[WhiteFideId "2231859"]
[BlackFideId "4611390"]
[WhiteElo "2160"]
[BlackElo "2396"]
[Result "0-1"]
[Round "09"]
[TimeControl "180+2"]
[Date "2023.01.17"]
[WhiteClock "0:00:03"]
[BlackClock "0:00:11"]

1. e4 {[%clk 0:03:00]}  c5 {[%clk 0:02:59]} 2. c3 {[%clk 0:03:00]}  d5 {[%clk 0:02:59]} 3. exd5 {[%clk 0:03:00]}  Qxd5 {[%clk 0:02:57]} 4. d4 {[%clk 0:03:01]}  Nf6 {[%clk 0:02:56]} 5. Nf3 {[%clk 0:03:01]}  e6 {[%clk 0:02:56]} 6. Be3 {[%clk 0:02:59]}  Nbd7 {[%clk 0:02:55]} 7. Nbd2 {[%clk 0:02:57]}  Be7 {[%clk 0:02:50]} 8. Bc4 {[%clk 0:02:56]}  Qd6 {[%clk 0:02:45]} 9. h3 {[%clk 0:02:52]}  O-O {[%clk 0:02:44]} 10. O-O {[%clk 0:02:50]}  b6 {[%clk 0:02:44]} 11. Qe2 {[%clk 0:02:42]}  Bb7 {[%clk 0:02:38]} 12. Rad1 {[%clk 0:02:40]}  Qc7 {[%clk 0:02:34]} 13. Bd3 {[%clk 0:02:35]}  Rad8 {[%clk 0:02:22]} 14. Rfe1 {[%clk 0:02:33]}  h6 {[%clk 0:02:04]} 15. Nc4 {[%clk 0:02:31]}  cxd4 {[%clk 0:01:57]} 16. Bxd4 {[%clk 0:02:25]}  Nc5 {[%clk 0:01:56]} 17. Bc2 {[%clk 0:02:21]}  Ba6 {[%clk 0:01:55]} 18. Be5 {[%clk 0:02:08]}  Qc8 {[%clk 0:01:45]} 19. b3 {[%clk 0:02:02]}  Rxd1 {[%clk 0:01:40]} 20. Rxd1 {[%clk 0:02:00]}  Rd8 {[%clk 0:01:40]} 21. Nd4 {[%clk 0:01:48]}  Ncd7 {[%clk 0:01:17]} 22. Nxe6 {[%clk 0:01:28]}  fxe6 {[%clk 0:01:12]} 23. Bxf6 {[%clk 0:01:27]}  Nxf6 {[%clk 0:01:10]} 24. Rxd8+ {[%clk 0:01:23]}  Bxd8 {[%clk 0:01:09]} 25. Bd3 {[%clk 0:01:22]}  Be7 {[%clk 0:00:56]} 26. Qe5 {[%clk 0:00:54]}  Bb7 {[%clk 0:00:50]} 27. Ne3 {[%clk 0:00:45]}  Nd5 {[%clk 0:00:38]} 28. Bc4 {[%clk 0:00:42]}  Bf6 {[%clk 0:00:36]} 29. Qe4 {[%clk 0:00:35]}  Qd7 {[%clk 0:00:27]} 30. Ng4 {[%clk 0:00:24]}  Bxc3 {[%clk 0:00:26]} 31. Bd3 {[%clk 0:00:22]}  Nf6 {[%clk 0:00:26]} 32. Nxf6+ {[%clk 0:00:13]}  Bxf6 {[%clk 0:00:27]} 33. Qh7+ {[%clk 0:00:13]}  Kf8 {[%clk 0:00:27]} 34. Bg6 {[%clk 0:00:10]}  Ke7 {[%clk 0:00:17]} 35. Qg8 {[%clk 0:00:09]}  Kd6 {[%clk 0:00:17]} 36. Qf8+ {[%clk 0:00:08]}  Kc7 {[%clk 0:00:16]} 37. Qb4 {[%clk 0:00:06]}  Qd6 {[%clk 0:00:16]} 38. Qc4+ {[%clk 0:00:05]}  Qc6 {[%clk 0:00:16]} 39. Qg4 {[%clk 0:00:05]}  Qc1+ {[%clk 0:00:12]} 40. Kh2 {[%clk 0:00:05]}  Be5+ {[%clk 0:00:10]} 41. f4 {[%clk 0:00:04]}  Qxf4+ {[%clk 0:00:09]} 42. Qxf4 {[%clk 0:00:03]}  Bxf4+ {[%clk 0:00:10]} 43. Kg1 {[%clk 0:00:03]}  Be5 {[%clk 0:00:10]} 44. Kf2 {[%clk 0:00:04]}  Kd6 {[%clk 0:00:11]} 45. Bd3 {[%clk 0:00:03]}  Bf6 {[%clk 0:00:12]} 46. Ke2 {[%clk 0:00:03]}  Kc5 {[%clk 0:00:12]} 47. g4 {[%clk 0:00:03]}  Kd4 {[%clk 0:00:12]} 48. Bb5 {[%clk 0:00:03]}  e5 {[%clk 0:00:11]} 49. Bd7 {[%clk 0:00:03]}  e4 {[%clk 0:00:11]} 50. Bf5 {[%clk 0:00:04]}  e3 {[%clk 0:00:11]} 51. b4 {[%clk 0:00:03]}  Be4 {[%clk 0:00:12]} 52. Be6 {[%clk 0:00:02]}  Bd3+ {[%clk 0:00:12]} 53. Kf3 {[%clk 0:00:03]}  e2 {[%clk 0:00:11]} 54. Kf2 {[%clk 0:00:03]}  Bh4+ {[%clk 0:00:11]} 0-1


[Site "https://www.chess.com"]

[Event "Titled Tuesday Blitz January 17 Late 2023"]
[White "MitzyCaballero"]
[Black "Belenkaya, Dina"]
[BlackFideId "24142654"]
[WhiteElo "2313"]
[BlackElo "2267"]
[Result "1-0"]
[Round "09"]
[TimeControl "180+2"]
[Date "2023.01.17"]
[WhiteClock "0:00:11"]
[BlackClock "0:00:14"]

1. d4 {[%clk 0:03:00]}  Nf6 {[%clk 0:02:52]} 2. Nf3 {[%clk 0:03:01]}  g6 {[%clk 0:02:49]} 3. c4 {[%clk 0:03:00]}  d6 {[%clk 0:02:44]} 4. g3 {[%clk 0:03:00]}  Nbd7 {[%clk 0:02:35]} 5. Bg2 {[%clk 0:02:59]}  Bg7 {[%clk 0:02:36]} 6. Nc3 {[%clk 0:02:58]}  O-O {[%clk 0:02:34]} 7. O-O {[%clk 0:02:58]}  Re8 {[%clk 0:02:28]} 8. e4 {[%clk 0:02:58]}  e5 {[%clk 0:02:28]} 9. h3 {[%clk 0:02:51]}  c6 {[%clk 0:02:17]} 10. Re1 {[%clk 0:02:49]}  Qc7 {[%clk 0:02:15]} 11. Be3 {[%clk 0:02:44]}  Nf8 {[%clk 0:01:50]} 12. Qc2 {[%clk 0:02:42]}  exd4 {[%clk 0:01:40]} 13. Nxd4 {[%clk 0:02:42]}  Ne6 {[%clk 0:01:35]} 14. Rad1 {[%clk 0:02:42]}  a5 {[%clk 0:01:26]} 15. Ndb5 {[%clk 0:02:10]}  cxb5 {[%clk 0:01:20]} 16. Nxb5 {[%clk 0:02:10]}  Qe7 {[%clk 0:01:16]} 17. Nxd6 {[%clk 0:02:09]}  Rd8 {[%clk 0:01:09]} 18. e5 {[%clk 0:02:05]}  Ne8 {[%clk 0:01:06]} 19. Bb6 {[%clk 0:02:02]}  Rd7 {[%clk 0:01:04]} 20. c5 {[%clk 0:01:54]}  Nxd6 {[%clk 0:00:56]} 21. exd6 {[%clk 0:01:36]}  Qf6 {[%clk 0:00:51]} 22. c6 {[%clk 0:01:35]}  bxc6 {[%clk 0:00:41]} 23. Bxc6 {[%clk 0:01:35]}  Rb8 {[%clk 0:00:34]} 24. Bxd7 {[%clk 0:01:22]}  Bxd7 {[%clk 0:00:35]} 25. Be3 {[%clk 0:00:55]}  Rxb2 {[%clk 0:00:30]} 26. Qe4 {[%clk 0:00:35]}  Ng5 {[%clk 0:00:24]} 27. Qa8+ {[%clk 0:00:34]}  Bf8 {[%clk 0:00:21]} 28. Rf1 {[%clk 0:00:12]}  Nf3+ {[%clk 0:00:13]} 29. Kg2 {[%clk 0:00:10]}  Ne5 {[%clk 0:00:04]} 30. Kh2 {[%clk 0:00:09]}  Bc6 {[%clk 0:00:04]} 31. Qxc6 {[%clk 0:00:04]}  Nxc6 {[%clk 0:00:05]} 32. d7 {[%clk 0:00:04]}  Nd8 {[%clk 0:00:04]} 33. Bd4 {[%clk 0:00:03]}  Qf3 {[%clk 0:00:02]} 34. Bxb2 {[%clk 0:00:03]}  Qc6 {[%clk 0:00:02]} 35. Be5 {[%clk 0:00:02]}  Qe6 {[%clk 0:00:02]} 36. Bf4 {[%clk 0:00:03]}  Be7 {[%clk 0:00:02]} 37. Rfe1 {[%clk 0:00:03]}  Qf6 {[%clk 0:00:03]} 38. Re2 {[%clk 0:00:03]}  Kg7 {[%clk 0:00:03]} 39. Rde1 {[%clk 0:00:03]}  g5 {[%clk 0:00:02]} 40. Be5 {[%clk 0:00:03]}  Kg6 {[%clk 0:00:02]} 41. Bxf6 {[%clk 0:00:03]}  Bxf6 {[%clk 0:00:03]} 42. Rd2 {[%clk 0:00:04]}  Nc6 {[%clk 0:00:03]} 43. Rd3 {[%clk 0:00:04]}  Nd8 {[%clk 0:00:03]} 44. Re8 {[%clk 0:00:04]}  Kg7 {[%clk 0:00:03]} 45. f4 {[%clk 0:00:03]}  gxf4 {[%clk 0:00:04]} 46. gxf4 {[%clk 0:00:03]}  Nc6 {[%clk 0:00:04]} 47. f5 {[%clk 0:00:04]}  Nd8 {[%clk 0:00:04]} 48. Kg2 {[%clk 0:00:03]}  Bg5 {[%clk 0:00:03]} 49. Kf1 {[%clk 0:00:03]}  Bf6 {[%clk 0:00:03]} 50. Ke2 {[%clk 0:00:04]}  h5 {[%clk 0:00:04]} 51. a4 {[%clk 0:00:04]}  h4 {[%clk 0:00:04]} 52. Rb3 {[%clk 0:00:04]}  Kh6 {[%clk 0:00:04]} 53. Rb8 {[%clk 0:00:04]}  Nc6 {[%clk 0:00:04]} 54. d8=Q {[%clk 0:00:04]}  Bxd8 {[%clk 0:00:04]} 55. Rexd8 {[%clk 0:00:05]}  Kg5 {[%clk 0:00:05]} 56. Rdc8 {[%clk 0:00:05]}  Nxb8 {[%clk 0:00:05]} 57. Rxb8 {[%clk 0:00:06]}  Kxf5 {[%clk 0:00:06]} 58. Rb5+ {[%clk 0:00:06]}  Kf4 {[%clk 0:00:06]} 59. Rxa5 {[%clk 0:00:07]}  Kg3 {[%clk 0:00:07]} 60. Rb5 {[%clk 0:00:07]}  Kxh3 {[%clk 0:00:06]} 61. Rf5 {[%clk 0:00:08]}  Kg4 {[%clk 0:00:07]} 62. Rxf7 {[%clk 0:00:08]}  h3 {[%clk 0:00:07]} 63. Rh7 {[%clk 0:00:09]}  h2 {[%clk 0:00:08]} 64. Kd3 {[%clk 0:00:09]}  Kf5 {[%clk 0:00:09]} 65. Rxh2 {[%clk 0:00:09]}  Ke6 {[%clk 0:00:10]} 66. Rh5 {[%clk 0:00:09]}  Kd6 {[%clk 0:00:11]} 67. Kc4 {[%clk 0:00:09]}  Kc7 {[%clk 0:00:12]} 68. Rh6 {[%clk 0:00:10]}  Kb7 {[%clk 0:00:13]} 69. Rh7+ {[%clk 0:00:11]}  Ka6 {[%clk 0:00:13]} 70. Kc5 {[%clk 0:00:11]}  Ka5 {[%clk 0:00:14]} 71. Ra7# {[%clk 0:00:11]} 1-0


[Site "https://www.chess.com"]

[Event "Titled Tuesday Blitz January 17 Late 2023"]
[White "Figorito, Nick"]
[Black "Floresvillar Gonzalez, Luis Migu"]
[WhiteFideId "30923689"]
[BlackFideId "5100542"]
[WhiteElo "2036"]
[BlackElo "2043"]
[Result "1-0"]
[Round "09"]
[TimeControl "180+2"]
[Date "2023.01.17"]
[WhiteClock "0:00:30"]
[BlackClock "0:00:14"]

1. Nf3 {[%clk 0:03:00]}  d5 {[%clk 0:02:54]} 2. g3 {[%clk 0:03:01]}  c6 {[%clk 0:02:53]} 3. Bg2 {[%clk 0:03:02]}  Bg4 {[%clk 0:02:53]} 4. O-O {[%clk 0:03:02]}  Nf6 {[%clk 0:02:52]} 5. c4 {[%clk 0:03:01]}  e6 {[%clk 0:02:50]} 6. Qb3 {[%clk 0:03:01]}  Qb6 {[%clk 0:02:49]} 7. d4 {[%clk 0:03:02]}  dxc4 {[%clk 0:02:46]} 8. Qxc4 {[%clk 0:03:01]}  Nbd7 {[%clk 0:02:44]} 9. Nc3 {[%clk 0:03:00]}  Be7 {[%clk 0:02:40]} 10. Na4 {[%clk 0:03:00]}  Qa5 {[%clk 0:02:27]} 11. Bd2 {[%clk 0:02:55]}  Qh5 {[%clk 0:02:26]} 12. Qb3 {[%clk 0:02:51]}  b5 {[%clk 0:02:23]} 13. Nc3 {[%clk 0:02:50]}  a6 {[%clk 0:02:18]} 14. a4 {[%clk 0:02:46]}  O-O {[%clk 0:02:16]} 15. Nd1 {[%clk 0:02:38]}  Nd5 {[%clk 0:02:05]} 16. Ne3 {[%clk 0:02:33]}  Nxe3 {[%clk 0:02:03]} 17. Bxe3 {[%clk 0:02:34]}  Nb6 {[%clk 0:02:00]} 18. Ne5 {[%clk 0:02:26]}  Nxa4 {[%clk 0:01:47]} 19. Nxc6 {[%clk 0:02:17]}  Bf6 {[%clk 0:01:36]} 20. Ne5 {[%clk 0:02:09]}  Bxe5 {[%clk 0:01:31]} 21. dxe5 {[%clk 0:02:04]}  Bxe2 {[%clk 0:01:32]} 22. Rfe1 {[%clk 0:01:54]}  Bf3 {[%clk 0:01:31]} 23. Bd2 {[%clk 0:01:34]}  Bxg2 {[%clk 0:01:28]} 24. Kxg2 {[%clk 0:01:35]}  Rfd8 {[%clk 0:01:20]} 25. Bb4 {[%clk 0:01:30]}  Nb6 {[%clk 0:01:12]} 26. Ba5 {[%clk 0:01:29]}  Rdb8 {[%clk 0:01:02]} 27. Bxb6 {[%clk 0:01:21]}  Rxb6 {[%clk 0:01:01]} 28. Qe3 {[%clk 0:01:11]}  Rab8 {[%clk 0:00:54]} 29. Rec1 {[%clk 0:01:06]}  h6 {[%clk 0:00:54]} 30. Rc7 {[%clk 0:01:05]}  b4 {[%clk 0:00:43]} 31. Ra7 {[%clk 0:01:00]}  b3 {[%clk 0:00:32]} 32. R1xa6 {[%clk 0:00:58]}  Rxa6 {[%clk 0:00:31]} 33. Rxa6 {[%clk 0:00:59]}  Qf5 {[%clk 0:00:31]} 34. Ra7 {[%clk 0:00:52]}  Rb5 {[%clk 0:00:21]} 35. Qc3 {[%clk 0:00:35]}  Qc2 {[%clk 0:00:18]} 36. Qf3 {[%clk 0:00:31]}  Rxe5 {[%clk 0:00:14]} 37. Qxf7+ {[%clk 0:00:30]} 1-0


[Site "https://www.chess.com"]

[Event "Titled Tuesday Blitz January 17 Late 2023"]
[White "Wang, Alexander J"]
[Black "Qiao, Cindy"]
[WhiteFideId "30955270"]
[BlackFideId "2620243"]
[WhiteElo "1815"]
[BlackElo "1785"]
[Result "1-0"]
[Round "09"]
[TimeControl "180+2"]
[Date "2023.01.17"]
[WhiteClock "0:00:11"]
[BlackClock "0:00:20"]

1. e4 {[%clk 0:03:00]}  c5 {[%clk 0:02:59]} 2. Nf3 {[%clk 0:02:54]}  d6 {[%clk 0:02:59]} 3. d4 {[%clk 0:02:54]}  cxd4 {[%clk 0:02:59]} 4. Nxd4 {[%clk 0:02:55]}  Nf6 {[%clk 0:03:00]} 5. Nc3 {[%clk 0:02:55]}  g6 {[%clk 0:03:00]} 6. g3 {[%clk 0:02:56]}  Bg7 {[%clk 0:02:59]} 7. Bg2 {[%clk 0:02:56]}  O-O {[%clk 0:02:59]} 8. O-O {[%clk 0:02:56]}  Bd7 {[%clk 0:02:56]} 9. h3 {[%clk 0:02:46]}  Nc6 {[%clk 0:02:56]} 10. Be3 {[%clk 0:02:45]}  Rc8 {[%clk 0:02:56]} 11. f4 {[%clk 0:02:25]}  a6 {[%clk 0:02:42]} 12. a4 {[%clk 0:01:59]}  Qc7 {[%clk 0:02:39]} 13. g4 {[%clk 0:01:48]}  Na5 {[%clk 0:02:38]} 14. Nde2 {[%clk 0:01:32]}  Nc4 {[%clk 0:02:35]} 15. Bc1 {[%clk 0:01:31]}  Bc6 {[%clk 0:02:20]} 16. b3 {[%clk 0:01:21]}  Nb6 {[%clk 0:02:17]} 17. Be3 {[%clk 0:01:15]}  Nbd7 {[%clk 0:02:11]} 18. g5 {[%clk 0:01:06]}  Nh5 {[%clk 0:02:05]} 19. Bf3 {[%clk 0:00:52]}  Rfd8 {[%clk 0:02:02]} 20. Bxh5 {[%clk 0:00:48]}  gxh5 {[%clk 0:02:00]} 21. Bd4 {[%clk 0:00:40]}  e5 {[%clk 0:01:43]} 22. Be3 {[%clk 0:00:36]}  Nc5 {[%clk 0:01:40]} 23. f5 {[%clk 0:00:31]}  Nxe4 {[%clk 0:01:39]} 24. f6 {[%clk 0:00:29]}  Bh8 {[%clk 0:01:33]} 25. Nxe4 {[%clk 0:00:29]}  Bxe4 {[%clk 0:01:33]} 26. Ng3 {[%clk 0:00:27]}  Bg6 {[%clk 0:01:31]} 27. c4 {[%clk 0:00:26]}  d5 {[%clk 0:01:22]} 28. cxd5 {[%clk 0:00:22]}  Qc3 {[%clk 0:01:16]} 29. Qf3 {[%clk 0:00:21]}  Qxb3 {[%clk 0:01:05]} 30. Rad1 {[%clk 0:00:20]}  Rc3 {[%clk 0:01:05]} 31. Rfe1 {[%clk 0:00:19]}  h4 {[%clk 0:00:58]} 32. Ne4 {[%clk 0:00:17]}  Rd3 {[%clk 0:00:54]} 33. Rxd3 {[%clk 0:00:15]}  Qxd3 {[%clk 0:00:55]} 34. Nc5 {[%clk 0:00:15]}  Qc3 {[%clk 0:00:48]} 35. Ne6 {[%clk 0:00:14]}  Re8 {[%clk 0:00:41]} 36. Rc1 {[%clk 0:00:13]}  Qd3 {[%clk 0:00:36]} 37. Nc7 {[%clk 0:00:13]}  Rc8 {[%clk 0:00:35]} 38. Rd1 {[%clk 0:00:11]}  Qc2 {[%clk 0:00:30]} 39. d6 {[%clk 0:00:11]}  Qc6 {[%clk 0:00:28]} 40. d7 {[%clk 0:00:11]}  Rd8 {[%clk 0:00:25]} 41. Qxc6 {[%clk 0:00:11]}  bxc6 {[%clk 0:00:25]} 42. Bb6 {[%clk 0:00:11]}  Bf5 {[%clk 0:00:25]} 43. Ne6 {[%clk 0:00:10]}  Rxd7 {[%clk 0:00:17]} 44. Rxd7 {[%clk 0:00:10]}  fxe6 {[%clk 0:00:18]} 45. Rd8+ {[%clk 0:00:10]}  Kf7 {[%clk 0:00:18]} 46. Rxh8 {[%clk 0:00:10]}  e4 {[%clk 0:00:18]} 47. Kf2 {[%clk 0:00:10]}  Bxh3 {[%clk 0:00:18]} 48. Rxh7+ {[%clk 0:00:10]}  Kg6 {[%clk 0:00:18]} 49. Rxh4 {[%clk 0:00:11]}  Bf5 {[%clk 0:00:18]} 50. Rh6+ {[%clk 0:00:11]}  Kxg5 {[%clk 0:00:18]} 51. f7 {[%clk 0:00:11]}  Kxh6 {[%clk 0:00:19]} 52. f8=Q+ {[%clk 0:00:11]}  Kg5 {[%clk 0:00:20]} 53. Be3+ {[%clk 0:00:11]}  Kg4 {[%clk 0:00:20]} 54. Qg7+ {[%clk 0:00:11]}  Kh5 {[%clk 0:00:20]} 55. Qg5# {[%clk 0:00:11]} 1-0


[Site "https://www.chess.com"]